[Event "SixDays Budapest March GM-A 2023"]
[Site "Budapest"]
[Date "2023.03.27"]
[Round "6.5"]
[White "Leszko, Bence"]
[Black "Berczes, David"]
[Result "1/2-1/2"]
[ECO "B10"]
[WhiteElo "2283"]
[BlackElo "2427"]
[Annotator "TA"]
[PlyCount "22"]
[EventDate "2023.03.24"]
[EventType "tourn"]
[EventCountry "HUN"]
[SourceTitle "playchess.com"]
[Source "ChessBase"]
[SourceQuality "1"]
[TimeControl "5400+30"]

{[%evp 9,22,0,2,-4,6,10,28,19,35,22,23,30,35,22,16]} 1. e4 {[%emt 0:04:45]} c6 {[%emt 0:21:29]} 2. Nf3 {[%emt 0:00:07]} d5 {[%emt 0:00:37]} 3. d3 {[%emt 0:00:32]} dxe4 {[%emt 0:01:21]} 4. dxe4 {[%emt 0:00:02]} Qxd1+ {[%emt 0:00:07]} 5. Kxd1 {[%emt 0:00:06]} Nf6 {[%emt 0:00:06]} 6. Nbd2 {[%emt 0:00:14] B10: Caro-Kann: 2 d3 and 2 c4.} Nbd7 {[%emt 0:02:36]} 7. Ne1 {[%emt 0:14:35]} Nc5 {[%emt 0:04:59]} 8. f3 {[%emt 0:00:09] [#]} Be6 $146 {[%emt 0:11:02]} ({Predecessor:} 8... g6 9. a4 Bg7 10. c3 Be6 11. Kc2 Bh6 12. b4 Bxd2 13. Bxd2 Nb3 14. Rb1 Nxd2 15. Kxd2 {½-½ Papp,G (2599)-Dreev,A (2637) EU-Cup 36th Struga 2021 (3.3)}) 9. Nd3 {[%emt 0:02:13]} Nxd3 {[%emt 0:00:54]} 10. Bxd3 {[%emt 0:00:26]} O-O-O {[%emt 0:02:36]} 11. Ke2 {[%emt 0:01:54]} Nd7 {[%emt 0:14:42] An uneventful encounter.   Weighted Error Value: White=0.05 (flawless) /Black=0.07 (flawless)} 1/2-1/2

[Event "SixDays Budapest March GM-A 2023"]
[Site "Budapest"]
[Date "2023.03.28"]
[Round "7.1"]
[White "Berczes, David"]
[Black "Rosh Jain"]
[Result "1-0"]
[ECO "A46"]
[WhiteElo "2427"]
[BlackElo "2325"]
[Annotator "TA"]
[PlyCount "99"]
[EventDate "2023.03.24"]
[EventType "tourn"]
[EventCountry "HUN"]
[SourceTitle "playchess.com"]
[Source "ChessBase"]
[SourceQuality "1"]
[TimeControl "5400+30"]

{[%evp 10,98,14,14,11,12,10,15,17,20,26,18,20,20,25,37,26,19,18,26,36,23,27,34,40,18,18,14,8,37,21,0,12,6,20,12,35,32,197,180,202,214,179,192,250,251,247,239,247,250,241,261,230,0,245,232,256,246,252,191,252,244,240,246,250,245,244,244,247,243,286,281,291,293,445,436,604,559,652,652,1512,1152,29977,29978,29971,29966,29997,29998,29998,29999,29999]} 1. d4 {[%emt 0:23:33]} Nf6 {[%emt 0:00:35]} 2. Nf3 {[%emt 0:00:37]} e6 {[%emt 0:00:07]} 3. Bf4 {[%emt 0:00:42]} d5 {[%emt 0:00:06]} 4. e3 {[%emt 0:00:16]} Bd6 {[%emt 0:00:10]} 5. Bxd6 {[%emt 0:02:33]} Qxd6 {[%emt 0:00:14]} 6. c4 {[%emt 0:00:42]} b6 {[%emt 0:01:30] D02: 1 d4 d5 2 Nf3 sidelines, including 2...Nf6 3 g3 and 2...Nf6 3 Bf4.} 7. Nc3 {[%emt 0:03:15]} Bb7 {[%emt 0:03:03]} 8. Rc1 {[%emt 0:13:34]} a6 {[%emt 0:01:57] Prevents Nb5. The position is equal.} 9. cxd5 {[%emt 0:04:58]} exd5 {[%emt 0:01:16]} 10. g3 {[%emt 0:04:52]} O-O {[%emt 0:01:05]} 11. Bg2 {[%emt 0:00:03]} Nbd7 {[%emt 0:01:47]} 12. O-O {[%emt 0:00:06] [#]} c5 $146 {[%emt 0:00:38]} ({Predecessor:} 12... Rac8 13. Qa4 c5 14. dxc5 Nxc5 15. Qd4 Ne6 16. Qd2 b5 17. Ne2 Ne4 18. Qa5 N6c5 {0-1 Raznikov,D (2498)-Sadorra,J (2555) Southwest op 84th 2018 (5)}) 13. Nh4 {[%emt 0:10:10]} Qe6 {[%emt 0:03:59]} 14. Ne2 {[%emt 0:05:53]} g6 {[%emt 0:06:49]} 15. Nf4 {[%emt 0:01:59]} Qd6 {[%emt 0:01:39]} 16. dxc5 {[%emt 0:04:12]} bxc5 {[%emt 0:05:02]} 17. e4 {[%emt 0:01:15]} Qb6 {[%emt 0:02:40]} 18. Nxd5 {[%emt 0:07:36]} ({Don't play} 18. exd5 g5 19. Bh3 Bc8 $15) 18... Bxd5 {[%emt 0:00:21]} 19. exd5 {[%emt 0:00:05]} Qxb2 {[%emt 0:00:20]} 20. d6 {[%emt 0:00:36]} Rad8 {[%emt 0:02:10]} 21. Qa4 {[%emt 0:05:29]} Qb5 {[%emt 0:05:48]} 22. Qa3 {[%emt 0:02:14]} c4 {[%emt 0:04:08]} 23. Nf3 {[%emt 0:02:10][%cal Bh4f3,Bf3d4,Bd4c6][%mdl 32]} Nb6 $2 {[%emt 0:05:33]} (23... Rfe8 $14) 24. Nd4 $18 {[%emt 0:01:49]} Qa4 {[%emt 0:10:33]} 25. Qxa4 {[%emt 0:00:03][%mdl 64] [#] Remove Defender, Deflection} Nxa4 {[%emt 0:00:06]} 26. Rxc4 {[%emt 0:00:03]} Nb6 {[%emt 0:00:24]} (26... Nb2 $142 27. Rc6 Ne8) 27. Rc6 {[%emt 0:00:08]} Nc8 {[%emt 0:00:06]} 28. Rxa6 {[%emt 0:00:35] Nb5 is the strong threat.} Nxd6 {[%emt 0:00:09]} 29. Nc6 {[%emt 0:01:25]} Rd7 {[%emt 0:01:21]} 30. Ne5 {[%emt 0:03:31]} Rdd8 {[%emt 0:00:06]} 31. Nc6 {[%emt 0:00:56]} Rd7 {[%emt 0:00:05]} 32. Rd1 {[%emt 0:00:05]} Nf5 {[%emt 0:03:48]} 33. Rxd7 {[%emt 0:00:05]} Nxd7 {[%emt 0:00:05]} 34. Bh3 {[%emt 0:01:27] And now Bxf5 would win.} Re8 {[%emt 0:00:41]} (34... Nb8 $142 35. Nxb8 Rxb8 36. Bxf5 gxf5) 35. Bxf5 {[%emt 0:00:20]} gxf5 {[%emt 0:00:05][%mdl 4096] Endgame KRN-KRN} 36. Ra7 {[%emt 0:00:18]} Nc5 {[%emt 0:01:34]} 37. Ne7+ {[%emt 0:00:21]} Kg7 {[%emt 0:00:09]} 38. Nxf5+ {[%emt 0:00:02]} Kg6 {[%emt 0:00:16]} 39. Ne3 {[%emt 0:00:40]} Re4 {[%emt 0:00:46]} 40. Ra5 {[%emt 0:00:55]} Nd3 {[%emt 0:00:15]} 41. Ra6+ {[%emt 0:00:21]} Kh5 {[%emt 0:02:17]} (41... f6 {is a better defense.} 42. Rd6 Ne5) 42. Rd6 {[%emt 0:00:59]} Nc1 {[%emt 0:00:44]} 43. h4 {[%emt 0:00:35]} Nxa2 {[%emt 0:02:54]} 44. Nd5 {[%emt 0:00:05] [#] Prevents Nc3. Nf6+ would be deadly.} Re1+ {[%emt 0:00:27]} 45. Kg2 {[%emt 0:00:05] White wants to mate with Nf4+.} Kg4 {[%emt 0:00:26]} 46. Rf6 {[%emt 0:00:43] White mates.} Re2 {[%emt 0:00:41]} 47. Ne3+ {[%emt 0:00:40]} Kh5 {[%emt 0:00:06]} 48. Kh3 {[%emt 0:00:17][%csl Ge3,Gh3][%cal Rg3g4]} Rxe3 {[%emt 0:00:05]} 49. fxe3 {[%emt 0:00:08][%csl Gh3][%cal Rg3g4]} h6 {[%emt 0:00:04]} 50. g4# {[%emt 0:00:04] Weighted Error Value: White=0.09 (flawless) /Black=0.41} 1-0

[Event "SixDays Budapest March GM-A 2023"]
[Site "Budapest"]
[Date "2023.03.28"]
[Round "7.2"]
[White "Pfreundt, Jakob"]
[Black "Leszko, Bence"]
[Result "1/2-1/2"]
[ECO "C42"]
[WhiteElo "2407"]
[BlackElo "2283"]
[Annotator "TA"]
[PlyCount "85"]
[EventDate "2023.03.24"]
[EventType "tourn"]
[EventCountry "HUN"]
[SourceTitle "playchess.com"]
[Source "ChessBase"]
[SourceQuality "1"]
[TimeControl "5400+30"]

{[%evp 12,85,47,69,53,43,40,50,41,37,41,37,38,34,33,33,33,37,37,42,37,37,73,70,65,63,88,88,78,40,40,39,34,34,37,14,20,11,21,14,30,15,15,15,16,1,15,16,16,11,8,6,12,0,24,3,14,14,16,8,5,0,14,6,8,0,14,0,7,0,0,0,0,0,0,0]} 1. e4 {[%emt 0:02:10]} e5 {[%emt 0:21:16]} 2. Nf3 {[%emt 0:00:20]} Nf6 {[%emt 0:00:06]} 3. Nxe5 {[%emt 0:00:26]} Nxe4 {[%emt 0:00:08]} 4. Qe2 {[%emt 0:01:57]} Qe7 {[%emt 0:00:06]} 5. Qxe4 {[%emt 0:00:25]} d6 {[%emt 0:00:04]} 6. d4 {[%emt 0:00:25]} dxe5 {[%emt 0:00:06]} 7. dxe5 {[%emt 0:00:11]} Nc6 {[%emt 0:00:04] C42: Petroff Defence: 3 Nxe5 and unusual White 3rd moves.} 8. Nc3 $1 {[%emt 0:00:57][%mdl 4] Nd5 is the strong threat. is recently more successful than 8.Bb5.} Qxe5 {[%emt 0:00:06]} 9. Qxe5+ {[%emt 0:06:07]} Nxe5 {[%emt 0:00:14] White is slightly better.} 10. Nb5 {[%emt 0:01:08]} Bb4+ {[%emt 0:00:02]} 11. Bd2 {[%emt 0:03:39]} Bxd2+ {[%emt 0:00:02]} 12. Kxd2 {[%emt 0:00:07][%cal Oa1e1] [#] Strongly threatening Re1!} Kd8 {[%emt 0:00:07]} 13. Re1 {[%emt 0:04:01]} f6 {[%emt 0:03:42]} 14. f4 {[%emt 0:01:13]} Ng6 {[%emt 0:00:39]} 15. g3 {[%emt 0:01:07]} Bd7 {[%emt 0:01:45]} 16. Nd4 {[%emt 0:00:53]} c5 {[%emt 0:00:33] [#]} 17. Ne6+ {[%emt 0:01:20]} Bxe6 {[%emt 0:00:07]} 18. Rxe6 {[%emt 0:00:04]} Re8 $1 {[%emt 0:02:50]} 19. Rxe8+ {[%emt 0:02:33]} Kxe8 $16 {[%emt 0:00:01][%mdl 4096] Endgame KRB-KRN} 20. Bg2 {[%emt 0:14:09]} Rd8+ {[%emt 0:00:08]} 21. Kc3 {[%emt 0:00:14]} b6 {[%emt 0:01:04]} 22. Re1+ {[%emt 0:07:30] [#]} Ne7 $146 {[%emt 0:04:57]} ({Predecessor:} 22... Kf8 23. Bf3 Ne7 24. Rd1 Rxd1 25. Bxd1 Nd5+ 26. Kd2 Ke7 27. Bf3 Kd6 28. c4 Ne7 {½-½ Legenia,A (2144)-Leruste,G (2193) Titled Tuesday intern op 16th Feb blitz 2021 (8)}) 23. Bf1 {[%emt 0:05:39]} Rd4 {[%emt 0:03:05]} 24. Bb5+ {[%emt 0:23:23]} Kd8 {[%emt 0:01:16] Hoping for ...Nd5+.} 25. b3 {[%emt 0:00:16]} Nd5+ {[%emt 0:01:28]} 26. Kb2 {[%emt 0:00:06] And now Re8+ would win.} Nc7 {[%emt 0:00:28] Dodges Re8+} 27. Bd3 {[%emt 0:00:22]} h6 {[%emt 0:01:53]} 28. Re3 {[%emt 0:02:10]} Nd5 {[%emt 0:02:30]} 29. Re2 {[%emt 0:00:19]} Nc7 {[%emt 0:00:59]} 30. Bg6 {[%emt 0:02:34]} Rd7 {[%emt 0:01:02]} 31. Bf5 {[%emt 0:01:41]} Rd5 {[%emt 0:00:06]} 32. Be4 {[%emt 0:00:17]} Rd6 {[%emt 0:01:07]} 33. h4 {[%emt 0:03:04]} Ne6 {[%emt 0:02:35] The position is equal.} 34. Bg6 {[%emt 0:00:40]} Nc7 {[%emt 0:00:39]} 35. a3 {[%emt 0:01:41]} Rd7 {[%emt 0:00:28]} 36. Bf5 {[%emt 0:01:30]} Rd5 {[%emt 0:00:06]} 37. Be4 {[%emt 0:00:28]} Rd4 {[%emt 0:00:39]} 38. c3 {[%emt 0:03:04]} Rd7 {[%emt 0:00:59]} 39. Bf5 {[%emt 0:01:49]} Rd5 {[%emt 0:00:10]} 40. Bg6 {[%emt 0:00:46]} Rd7 {[%emt 0:00:01]} 41. Bf5 {[%emt 0:01:04]} Rd5 {[%emt 0:00:08]} 42. g4 {[%emt 0:04:29]} Rd6 {[%emt 0:01:01]} 43. Kc2 {[%emt 0:02:56] Weighted Error Value: White=0.06 (flawless) /Black=0.03 (flawless)} 1/2-1/2

[Event "SixDays Budapest March GM-A 2023"]
[Site "Budapest"]
[Date "2023.03.28"]
[Round "7.3"]
[White "Bodi, Tibor"]
[Black "Kushagra Mohan"]
[Result "1/2-1/2"]
[ECO "B10"]
[WhiteElo "2356"]
[BlackElo "2396"]
[Annotator "TA"]
[PlyCount "44"]
[EventDate "2023.03.24"]
[EventType "tourn"]
[EventCountry "HUN"]
[SourceTitle "playchess.com"]
[Source "ChessBase"]
[SourceQuality "1"]
[TimeControl "5400+30"]

{[%evp 10,44,27,16,30,21,27,14,18,16,30,26,38,21,54,52,62,28,34,35,33,18,47,42,37,0,0,0,0,-34,0,0,0,-35,0,0,0]} 1. e4 {[%emt 0:00:33]} c6 {[%emt 0:00:42]} 2. Nf3 {[%emt 0:00:11]} d5 {[%emt 0:00:04]} 3. Nc3 {[%emt 0:00:04]} dxe4 {[%emt 0:00:04]} 4. Nxe4 {[%emt 0:00:05]} Nf6 {[%emt 0:00:03]} 5. Qe2 {[%emt 0:00:07]} Nxe4 {[%emt 0:00:04]} 6. Qxe4 {[%emt 0:00:04]} Qa5 {[%emt 0:00:04] B11: Caro-Kann: Two Knights Variation.} 7. Bc4 {[%emt 0:10:26]} Bf5 {[%emt 0:01:03]} 8. Qf4 {[%emt 0:00:26][%cal Ob2b4] [#] aiming for b4!} e6 {[%emt 0:00:50]} 9. O-O {[%emt 0:01:36]} Nd7 {[%emt 0:00:52]} 10. d3 {[%emt 0:01:02] [#]} O-O-O $146 {[%emt 0:05:00]} ({Predecessor:} 10... Be7 11. Bd2 Qd8 12. Bc3 O-O 13. Rfe1 Nb6 14. Bb3 Nd5 15. Qg3 Nxc3 16. bxc3 Bd6 {1-0 Mamedov,R (2654)-Carlsen,M (2863) Katara Bullet Final blitz 2020 (2.8)}) 11. Qg3 {[%emt 0:13:42]} Bg6 {[%emt 0:07:08]} 12. Bd2 {[%emt 0:01:10]} Qf5 {[%emt 0:01:23]} 13. Rfe1 {[%emt 0:03:19] White is more active.} Nb6 {[%emt 0:06:45]} 14. Nh4 {[%emt 0:03:09]} Qc5 {[%emt 0:00:37]} 15. b4 {[%emt 0:03:09]} Qd4 {[%emt 0:04:37]} (15... Qd6 {simplifies} 16. Bb3 Qxg3 17. fxg3 Nd5) 16. Nf3 {[%emt 0:01:35]} Qd6 {[%emt 0:01:34]} 17. Bf4 {[%emt 0:00:48]} (17. Bb3 {simplifies} Qxg3 18. hxg3 Nd5 19. a3) 17... Qxb4 {[%emt 0:00:34]} 18. Rab1 {[%emt 0:00:18]} ({Don't play} 18. Bb8 Bd6 19. Bxd6 Qxd6 $15) 18... Qc5 {[%emt 0:04:52]} 19. Be3 {[%emt 0:06:51]} ({Of course not} 19. Bb8 Bd6 20. Bxd6 Qxd6 $15) (19. Re5 $5 {[%cal Re5c5]} Qa3 20. Bb3 $15) 19... Qd6 {[%emt 0:01:01]} 20. Bf4 {[%emt 0:03:37]} Qc5 {[%emt 0:00:09]} 21. Be3 {[%emt 0:07:24]} Qd6 {[%emt 0:00:19]} 22. Bf4 {[%emt 0:03:22]} Qc5 {[%emt 0:00:14] Weighted Error Value: White=0.10 (very precise) /Black=0.13 (very precise)} 1/2-1/2

[Event "SixDays Budapest March GM-A 2023"]
[Site "Budapest"]
[Date "2023.03.28"]
[Round "7.4"]
[White "Sammed Jaykumar, Shete"]
[Black "Horvath, Adam"]
[Result "0-1"]
[ECO "B30"]
[WhiteElo "2454"]
[BlackElo "2458"]
[Annotator "TA"]
[PlyCount "90"]
[EventDate "2023.03.24"]
[EventType "tourn"]
[EventCountry "HUN"]
[SourceTitle "playchess.com"]
[Source "ChessBase"]
[SourceQuality "1"]
[TimeControl "5400+30"]

{[%evp 16,90,33,0,0,0,0,0,0,0,0,0,0,0,0,-146,-137,-244,-261,-261,-245,-206,-167,-195,-149,-151,-193,-282,-276,-338,-316,-339,-334,-316,-321,-359,-349,-359,-343,-365,-368,-376,-368,-359,-365,-409,-407,-388,-395,-554,-531,-559,-556,-526,-509,-625,-614,-895,-866,-799,-790,-1333,-1287,-1129,-1114,-1033,-1002,-973,-845,-2774,-2944,-2100,-1928,-29994,-29995,-29995,-29996]} 1. e4 {[%emt 0:00:33][%cal Be2e4,Be4e5][%mdl 32]} c5 {[%emt 0:02:37]} 2. Nf3 {[%emt 0:00:13]} Nc6 {[%emt 0:00:11]} 3. c3 {[%emt 0:00:07]} Nf6 {[%emt 0:00:15]} 4. e5 {[%emt 0:00:04]} Nd5 {[%emt 0:00:04]} 5. Bc4 {[%emt 0:00:05]} Nb6 {[%emt 0:00:06]} 6. Bb3 {[%emt 0:00:02]} c4 {[%emt 0:00:06]} 7. Bc2 {[%emt 0:00:03]} d6 {[%emt 0:00:05]} 8. exd6 {[%emt 0:00:06]} Qxd6 {[%emt 0:00:07]} 9. O-O {[%emt 0:00:07]} Bg4 {[%emt 0:00:04] B22: Sicilian: 2 c3.} 10. h3 {[%emt 0:00:17]} Bh5 {[%emt 0:00:18]} 11. Re1 {[%emt 0:00:06] Against Ne5} O-O-O {[%emt 0:01:04] The position is equal.} 12. b3 {[%emt 0:00:46] is more profitable than 12.Be4 at the moment.} Qf6 $1 {[%emt 0:00:48]} 13. Na3 {[%emt 0:00:44]} Nd5 {[%emt 0:00:31][%cal Od5c3] Threatens to win with ...Nxc3!} 14. Nxc4 {[%emt 0:01:18]} (14. bxc4 $2 Nxc3 15. dxc3 Rxd1 16. Rxd1 Bxf3 17. gxf3 Qxf3 $19) 14... b5 {[%emt 0:00:40] [#]} 15. Ne3 $146 {[%emt 0:04:13]} (15. Be4 $11 {keeps the balance.} bxc4 16. Qe2) ({Predecessor:} 15. Be4 bxc4 16. Qe2 Ne5 17. g4 Nf4 18. Qe3 Nxf3+ 19. Bxf3 Nxh3+ 20. Kg2 Rd3 21. Qc5+ {0-1 Kraus,T (2477)-Horvath,D (2483) Vienna GM Feb 2022 (8)}) 15... Nxc3 $1 $17 {[%emt 0:06:02] Black is more active.} 16. dxc3 {[%emt 0:00:55]} (16. Bf5+ $17 Qxf5 17. Nxf5 Nxd1 18. Rxd1) 16... Rxd1 $19 {[%emt 0:00:08]} 17. Rxd1 {[%emt 0:32:57] Nd5 would be deadly.} Bxf3 {[%emt 0:14:02]} (17... Qxc3 18. Bd2 Qf6 19. Be4 $18) 18. gxf3 {[%emt 0:00:05]} Qxf3 {[%emt 0:00:45]} (18... Qxc3 19. Bd2 Qe5 20. Rac1 $18) 19. a4 {[%emt 0:06:26]} b4 {[%emt 0:06:16]} (19... Qxh3 $2 20. Bf5+ $18 (20. axb5 e6 $16) (20. axb5 e6 $16)) 20. cxb4 {[%emt 0:02:00] [#]} e6 $1 {[%emt 0:08:00] Hoping for ...Be7.} (20... Qxh3 $2 21. Bf5+ $18) ({Don't do} 20... Nxb4 21. Bb2 h5 22. Rac1 $18) 21. Bd3 {[%emt 0:00:31]} (21. Bb2 {keeps fighting.} Be7 22. Rd3 Nxb4 23. Bd1 Qxf2+ {[%mdl 64] Decoy} 24. Kxf2 Nxd3+ 25. Kf3 Nxb2 26. Be2) 21... Bxb4 {[%emt 0:04:15]} ({Worse is} 21... Nxb4 22. Bf1 $17) 22. Bf1 {[%emt 0:16:10]} Rd8 {[%emt 0:02:34]} 23. Bb2 {[%emt 0:00:19]} Rd2 {[%emt 0:09:18]} 24. Rxd2 {[%emt 0:00:16]} Bxd2 {[%emt 0:00:04]} 25. Bg2 {[%emt 0:00:49] [#]} Qe2 {[%emt 0:00:05]} 26. Nc4 {[%emt 0:02:35]} Nb4 {[%emt 0:08:24]} 27. Bf1 {[%emt 0:05:12]} Qh5 {[%emt 0:00:36][%cal Ob4c2] White must now prevent ...Nc2!} 28. Nxd2 {[%emt 0:00:22]} Qg5+ {[%emt 0:00:04]} 29. Bg2 {[%emt 0:00:13] aiming for Ne4.} Qxd2 {[%emt 0:00:05]} 30. Bxg7 {[%emt 0:00:07]} a5 {[%emt 0:11:39]} 31. Be5 {[%emt 0:01:58]} Nd3 {[%emt 0:10:26][%csl LRe5,LRf2]} 32. Bd4 {[%emt 0:00:53]} (32. Bg3 {was the only defense.}) 32... e5 {[%emt 0:00:19]} 33. Be3 {[%emt 0:00:05]} Qb2 {[%emt 0:00:33][%csl LRa1,LRb3]} 34. Rf1 {[%emt 0:01:54]} f5 {[%emt 0:03:50][%cal Bf7f5,Bf5f4][%mdl 32]} 35. Bd5 {[%emt 0:00:08]} Kc7 {[%emt 0:03:23]} 36. Rd1 {[%emt 0:06:37]} f4 {[%emt 0:02:08]} 37. Ba7 {[%emt 0:00:47]} Qe2 {[%emt 0:00:13]} 38. Rb1 {[%emt 0:00:29]} e4 {[%emt 0:02:07]} 39. Bc4 {[%emt 0:00:24]} Qc2 {[%emt 0:01:40]} 40. Rf1 {[%emt 0:00:21]} Ne5 {[%emt 0:00:57][%cal Oc2c3]} 41. Bd5 {[%emt 0:00:34]} Kd6 {[%emt 0:02:00]} 42. Bg8 {[%emt 0:02:55]} Nf3+ {[%emt 0:02:52]} 43. Kg2 {[%emt 0:00:05]} Nh4+ {[%emt 0:00:33]} 44. Kh1 {[%emt 0:00:29]} Qd3 {[%emt 0:00:31][%csl LRf1,LRh3]} 45. Kg1 {[%emt 0:00:34]} Qf3 {[%emt 0:00:16] Artfully played by Horvath.   Weighted Error Value: White=0.79/Black=0.01 (flawless)} 0-1